lending/lending_fUSD_20240830
["ID","MTS","AMOUNT","RATE_DAILY","PERIOD"]
[336659327,1724999980902,-2100.0,0.00025,30]
[336659328,1724999980926,-150.0,0.00025,60]
[336659329,1724999980960,-3000.0,0.00025,30]
[336659330,1724999980983,-2000.0,0.00025,120]
[336659331,1724999981006,-450.0,0.00025,60]
[336659332,1724999981030,-1000.0,0.00025096,30]
[336659333,1724999981054,-1000.0,0.00025315,30]
[336659334,1724999981078,-561.76,0.00025479,30]
[336659335,1724999981102,-561.76,0.00025479,30]
[336659336,1724999981126,-561.76,0.00025479,30]
[336659337,1724999981154,-561.76,0.00025479,30]
[336659338,1724999981178,-561.76,0.00025479,30]
[336659339,1724999981206,-561.76,0.00025479,30]
[336659340,1724999981229,-561.76,0.00025479,30]
[336659341,1724999981252,-561.76,0.00025479,30]
[336659342,1724999981276,-561.76,0.00025479,30]
[336659343,1724999981299,-561.76,0.00025479,30]
[336659344,1724999981322,-561.76,0.00025479,30]
[336659345,1724999981344,-561.76,0.00025479,30]
[336659346,1724999981367,-561.76,0.00025479,30]
[336659347,1724999981390,-561.76,0.00025479,30]
[336659348,1724999981414,-561.76,0.00025479,30]
[336659349,1724999981437,-561.76,0.00025479,30]
[336659350,1724999981462,-561.76,0.00025479,30]
[336659351,1724999981485,-561.76,0.00025479,30]
[336659352,1724999981507,-561.76,0.00025479,30]
[336659353,1724999981530,-561.76,0.00025479,30]
[336659354,1724999981552,-561.76,0.00025479,30]
[336659355,1724999981574,-561.76,0.00025479,30]
[336659356,1724999981596,-561.76,0.00025479,30]
[336659357,1724999981619,-561.96876807,0.00025479,30]
[336659358,1724999981645,-1000.0,0.00025534,30]
[336659359,1724999981668,-523.17,0.00025613,30]
[336659360,1724999981691,-1000.0,0.00025753,30]
[336659361,1724999981715,-1000.0,0.00025973,30]
[336659362,1724999981739,-1100.0,0.00026,60]
[336659363,1724999981764,-500.0,0.00026,120]
[336659364,1724999981787,-759.31,0.00026,120]
[336659365,1724999981814,-3794.18553124,0.00026,120]
[336659366,1724999981839,-1000.0,0.00026192,30]
[336659367,1724999981862,-1000.0,0.00026411,30]
[336659368,1724999981888,-192.0,0.00026508,120]
[336659369,1724999981911,-1000.0,0.0002663,30]
[336659370,1724999981934,-1000.0,0.00026849,30]
[336659371,1724999981956,-800.0,0.00026986,120]
[336659372,1724999981979,-336.26,0.00026986,120]
[336659373,1724999982003,-160.0,0.00026991,120]
[336659374,1724999982026,-452.55448236,0.00027,120]
[336659375,1724999982049,-500.0,0.00027,120]
[336659376,1724999982071,-100000.0,0.00027,120]
[336659377,1724999982093,-1000.0,0.00027068,30]
[336659378,1724999982116,-1000.0,0.00027288,30]
[336659379,1724999982142,-295.20097657,0.0002739,30]
[336659380,1724999982167,-502.96246,0.00027397,120]
[336659381,1724999982192,-2000.0,0.00027397,120]
[336659382,1724999982217,-200.0,0.00027397,120]
[336659383,1724999982242,-2000.0,0.00027397,30]
[336659384,1724999982265,-2000.0,0.00027397,30]
[336659385,1724999982288,-2000.0,0.00027397,30]
[336659386,1724999982311,-2000.0,0.00027397,30]
[336659387,1724999982334,-2000.0,0.00027397,30]
[336659388,1724999982356,-2000.0,0.00027397,30]
[336659389,1724999982378,-2000.0,0.00027397,30]
[336659390,1724999982400,-2000.0,0.00027397,30]
[336659391,1724999982421,-2000.0,0.00027397,30]
[336659392,1724999982445,-2000.0,0.00027397,30]
[336659393,1724999982469,-2000.0,0.00027397,30]
[336659394,1724999982491,-2000.0,0.00027397,30]
[336659395,1724999982514,-2000.0,0.00027397,30]
[336659396,1724999982537,-2000.0,0.00027397,30]
[336659397,1724999982561,-2000.0,0.00027397,30]
[336659398,1724999982583,-2000.0,0.00027397,30]
[336659399,1724999982606,-959.99542764,0.00027397,30]
[336659400,1724999982629,-200.0,0.00027397,60]
[336659401,1724999982653,-158.19,0.000274,30]
[336659402,1724999982676,-158.19,0.000274,30]
[336659403,1724999982699,-158.19,0.000274,30]
[336659404,1724999982720,-158.19,0.000274,30]
[336659405,1724999982743,-158.19,0.000274,30]
[336659406,1724999982766,-158.19,0.000274,30]
[336659408,1724999982788,-158.19,0.000274,30]
[336659409,1724999982810,-158.19,0.000274,30]
[336659411,1724999982834,-161.49004978,0.00027479,30]
[336659413,1724999982857,-1000.0,0.00027507,30]
[336659415,1724999982882,-161.49004978,0.00027644,30]
[336659416,1724999982906,-1000.0,0.00027726,30]
[336659418,1724999982929,-161.49004978,0.00027781,30]
[336659420,1724999982954,-161.49004978,0.00027918,30]
[336659422,1724999982978,-1000.0,0.00027945,30]
[336659424,1724999983008,-2000.0,0.00028,120]
[336659426,1724999983032,-655.0,0.00028,120]
[336659428,1724999983056,-1000.0,0.00028,60]
[336659430,1724999983080,-100000.0,0.00028,120]
[336659432,1724999983103,-161.49004978,0.00028082,30]
[336659434,1724999983128,-1000.0,0.00028164,30]
[336659436,1724999983152,-161.49004978,0.00028219,30]
[336659438,1724999983176,-150.0,0.00028349,120]
[336659440,1724999983201,-1000.0,0.00028384,30]
[336659442,1724999983227,-161.49004978,0.00028384,30]
[336659444,1724999983250,-161.49004978,0.00028521,30]
[336659446,1724999983273,-1000.0,0.00028603,30]
[336659447,1724999983297,-150.0,0.00028632,120]
[336659449,1724999983321,-2000.0,0.00028647,120]
[336659451,1724999983343,-161.49004978,0.00028658,30]
[336659453,1724999983366,-212.0,0.0002874,30]
[336659455,1724999983389,-1199.07138929,0.00028767,120]
[336659457,1724999983412,-523.17,0.00028774,30]
[336659459,1724999983437,-1000.0,0.00028822,30]
[336659461,1724999983459,-161.49004978,0.00028822,30]
[336659463,1724999983485,-150.0,0.00028882,120]
[336659465,1724999983508,-161.49004978,0.00028959,30]
[336659467,1724999983532,-150.0,0.0002899,120]
[336659468,1724999983555,-3600.0,0.00029,30]
[336659470,1724999983578,-70436.0,0.00029,120]
[336659472,1724999983601,-1000.0,0.00029041,30]
[336659474,1724999983625,-161.49004978,0.00029123,30]
[336659476,1724999983652,-192.0,0.00029158,120]
[336659477,1724999983675,-1000.0,0.0002926,30]
[336659479,1724999983701,-150.0,0.00029329,120]
[336659481,1724999983725,-150.0,0.00029465,120]
[336659483,1724999983748,-1000.0,0.00029479,30]
[336659485,1724999983772,-452.55448236,0.000295,120]
[336659487,1724999983796,-150.0,0.00029511,120]
[336659489,1724999983819,-150.0,0.00029596,120]
[336659491,1724999983842,-150.0,0.00029668,120]
[336659492,1724999983866,-1000.0,0.00029699,30]
[336659494,1724999983891,-150.0,0.00029775,120]
[336659497,1724999983934,-2000.0,0.00029897,120]
[336659499,1724999983958,-1000.0,0.00029918,30]
[336659501,1724999983982,-150.0,0.00029963,120]
[336659503,1724999984006,-151.0,0.0003,120]
[336659505,1724999984028,-151.0,0.0003,120]
[336659507,1724999984050,-1191.46780855,0.0003,30]
[336659509,1724999984073,-200.0,0.0003,120]
[336659511,1724999984096,-3600.0,0.0003,31]
[336659513,1724999984119,-3159.0,0.0003,30]
[336659515,1724999984146,-1100.0,0.0003,120]
[336659516,1724999984170,-2000.0,0.0003,120]
[336659518,1724999984195,-3000.0,0.0003,60]
[336659520,1724999984226,-3000.0,0.0003,60]
[336659522,1724999984249,-1641.0,0.0003,60]
[336659524,1724999984272,-191.24131894,0.0003,90]
[336659526,1724999984296,-150.0,0.00030011,120]
[336659528,1724999984320,-150.0,0.00030024,120]
[336659530,1724999984343,-150.0,0.00030112,120]
[336659532,1724999984367,-200.0,0.00030137,60]
[336659534,1724999984390,-1000.0,0.00030137,30]
[336659536,1724999984414,-150.0,0.0003018,120]
[336659538,1724999984444,-212.0,0.0003025,30]
[336659540,1724999984468,-150.0,0.00030348,120]
[336659541,1724999984491,-1000.0,0.00030356,30]
[336659543,1724999984515,-1000.0,0.00030575,30]
[336659545,1724999984537,-548.0,0.00030613,30]
[336659547,1724999984560,-200.0,0.0003073,120]
[336659549,1724999984584,-1000.0,0.00030795,30]
[336659551,1724999984606,-250.0,0.000308,30]
[336659553,1724999984631,-150.0,0.00030813,120]
[336659555,1724999984667,-150.0,0.00030844,120]
[336659557,1724999984699,-160.0,0.00030846,120]
[336659560,1724999984729,-3600.0,0.00031,32]
[336659562,1724999984755,-150.0,0.00031,120]
[336659564,1724999984780,-1000.0,0.00031014,30]
[336659566,1724999984810,-150.0,0.00031036,120]
[336659568,1724999984839,-150.0,0.00031107,120]
[336659570,1724999984867,-151.0,0.00031123,120]
[336659571,1724999984896,-2000.0,0.00031147,120]
[336659572,1724999984925,-1000.0,0.00031233,30]
[336659573,1724999984956,-150.0,0.00031308,120]
[336659574,1724999984986,-1000.0,0.00031452,30]
[336659576,1724999985012,-1629.50866611,0.000315,30]
[336659578,1724999985042,-150.0,0.0003158,120]
[336659580,1724999985069,-1000.0,0.00031671,30]
[336659582,1724999985097,-150.0,0.00031697,120]
[336659584,1724999985124,-212.0,0.0003175,30]
[336659586,1724999985153,-150.0,0.00031802,120]
[336659588,1724999985179,-192.0,0.00031809,120]
[336659590,1724999985208,-1000.0,0.0003189,30]
[336659592,1724999985237,-523.17,0.00031935,30]
[336659595,1724999985264,-3600.0,0.00032,33]
[336659597,1724999985293,-452.55448236,0.00032,120]
[336659599,1724999985320,-2000.0,0.00032,120]
[336659601,1724999985347,-1000.0,0.00032,90]
[336659642,1724999986394,-4000.0,0.00032,30]
[336659645,1724999986446,-150.0,0.00032016,120]
[336659647,1724999986471,-1000.0,0.0003211,30]
[336659649,1724999986495,-150.0,0.00032121,120]
[336659651,1724999986520,-151.0,0.00032247,120]
[336659652,1724999986544,-1000.0,0.00032329,30]
[336659654,1724999986568,-2000.0,0.00032397,120]
[336659656,1724999986592,-150.0,0.00032458,120]
[336659658,1724999986616,-1000.0,0.00032548,30]
[336659660,1724999986639,-5496.0,0.000327,35]
[336659662,1724999986662,-150.0,0.00032718,120]
[336659664,1724999986685,-1000.0,0.00032767,30]
[336659666,1724999986710,-150.0,0.00032838,120]
[336659668,1724999986732,-200.0,0.00032877,60]
[336659670,1724999986756,-150.0,0.00032983,120]
[336659672,1724999986780,-1000.0,0.00032986,30]
[336659674,1724999986802,-577.56938418,0.00033,60]
[336659676,1724999986824,-1143.5534831,0.00033,34]
[336659678,1724999986847,-3000.0,0.00033,60]
[336659679,1724999986870,-3000.0,0.00033,60]
[336659681,1724999986893,-387.007272,0.00033,120]
[336659683,1724999986917,-150.0,0.00033047,120]
[336659685,1724999986942,-150.0,0.0003306,120]
[336659687,1724999986968,-150.0,0.0003313,120]
[336659689,1724999986992,-1000.0,0.00033205,30]
[336659691,1724999987016,-212.0,0.0003326,30]
[336659693,1724999987040,-150.0,0.00033272,120]
[336659694,1724999987064,-151.0,0.0003337,120]
[336659696,1724999987088,-1000.0,0.00033425,30]
[336659699,1724999987114,-268.41,0.000335,31]
[336659701,1724999987139,-268.41,0.000335,31]
[336659702,1724999987167,-268.41,0.000335,31]
[336659704,1724999987192,-268.41,0.000335,31]
[336659707,1724999987218,-268.41,0.000335,31]
[336659708,1724999987245,-268.41,0.000335,31]
[336659711,1724999987271,-268.41,0.000335,31]
[336659713,1724999987295,-268.41,0.000335,31]
[336659715,1724999987322,-268.41,0.000335,31]
[336659716,1724999987346,-268.41,0.000335,31]
[336659718,1724999987371,-268.41,0.000335,31]
[336659720,1724999987397,-268.41,0.000335,31]
[336659723,1724999987423,-1000.0,0.00033644,30]
[336659725,1724999987455,-2000.0,0.00033647,120]
[336659726,1724999987478,-768.0,0.00033674,30]
[336659728,1724999987502,-1000.0,0.00033863,30]
[336659730,1724999987525,-2043.66154685,0.00034,30]
[336659732,1724999987547,-1100.0,0.00034,120]
[336659734,1724999987571,-2000.0,0.00034,120]
[336659736,1724999987594,-1003.20876004,0.00034,120]
[336659738,1724999987616,-601.66,0.00034061,120]
[336659740,1724999987640,-200.0,0.00034064,120]
[336659742,1724999987664,-1000.0,0.00034082,30]
[336659743,1724999987692,-150.0,0.00034158,120]
[336659744,1724999987715,-150.0,0.0003427,120]
[336659745,1724999987738,-1000.0,0.00034301,30]
[336659746,1724999987761,-151.0,0.00034493,120]
[336659747,1724999987784,-452.55448236,0.000345,120]
[336659748,1724999987808,-3800.0,0.000345,120]
[336659750,1724999987833,-1000.0,0.00034521,30]
[336659752,1724999987859,-160.0,0.00034702,120]
[336659754,1724999987883,-1000.0,0.0003474,30]
[336659756,1724999987906,-212.0,0.0003476,30]
[336659758,1724999987930,-150.0,0.0003479,120]
[336659760,1724999987956,-2132.738773,0.000348,30]
[336659762,1724999987980,-24584.15611251,0.00034874,31]
[336659764,1724999988004,-2000.0,0.00034897,120]
[336659766,1724999988029,-1000.0,0.00034959,30]
[336659768,1724999988055,-50000.0,0.00035,35]
[336659770,1724999988078,-1052.97468252,0.00035,60]
[336659773,1724999988161,-701.55329061,0.00035,30]
[336659775,1724999988184,-200.0,0.00035,120]
[336659777,1724999988208,-500.0,0.00035,120]
[336659779,1724999988232,-150.0,0.00035,30]
[336659781,1724999988253,-3000.0,0.00035,30]
[336659783,1724999988275,-3000.0,0.00035,60]
[336659784,1724999988297,-3000.0,0.00035,60]
[336659786,1724999988320,-3000.0,0.00035,60]
[336659788,1724999988342,-4000.0,0.00035,30]
[336659790,1724999988365,-414.0,0.00035,120]
[336659792,1724999988387,-1000.0,0.00035,90]
[336659794,1724999988411,-2843.651697,0.00035,30]
[336659796,1724999988434,-2324.35158896,0.0003504,30]
[336659798,1724999988458,-1061.11294645,0.0003504,30]
[336659800,1724999988482,-150.0,0.00035079,120]
[336659802,1724999988506,-200.0,0.00035085,120]
[336659804,1724999988530,-150.0,0.00035093,120]
[336659806,1724999988552,-523.17,0.00035097,30]
[336659807,1724999988575,-150.0,0.000351,120]
[336659809,1724999988601,-268.41,0.000351,31]
[336659811,1724999988626,-268.41,0.000351,31]
[336659813,1724999988652,-268.41,0.000351,31]
[336659816,1724999988680,-268.41,0.000351,31]
[336659818,1724999988707,-268.41,0.000351,31]
[336659820,1724999988735,-268.41,0.000351,31]
[336659822,1724999988761,-268.41,0.000351,31]
[336659824,1724999988787,-268.41,0.000351,31]
[336659826,1724999988813,-268.41,0.000351,31]
[336659828,1724999988841,-268.41,0.000351,31]
[336659830,1724999988868,-268.41,0.000351,31]
[336659832,1724999988894,-268.41,0.000351,31]
[336659834,1724999988922,-268.41,0.000351,31]
[336659836,1724999988949,-268.41,0.000351,31]
[336659838,1724999988976,-268.41,0.000351,31]
[336659840,1724999989004,-268.41,0.000351,31]
[336659842,1724999989031,-268.41,0.000351,31]
[336659844,1724999989058,-268.41,0.000351,31]
[336659846,1724999989085,-268.41,0.000351,31]
[336659848,1724999989112,-268.41,0.000351,31]
[336659850,1724999989140,-268.41,0.000351,31]
[336659852,1724999989169,-268.41,0.000351,31]
[336659854,1724999989197,-268.41,0.000351,31]
[336659857,1724999989223,-268.41,0.000351,31]
[336659859,1724999989247,-1000.0,0.00035178,30]
[336659860,1724999989272,-150.0,0.00035281,120]
[336659862,1724999989295,-150.0,0.0003538,120]
[336659864,1724999989320,-1000.0,0.00035397,30]
[336659865,1724999989344,-3554.564622,0.000355,30]
[336659867,1724999989368,-4265.477546,0.000356,30]
[336659869,1724999989391,-200.0,0.00035616,60]
[336659871,1724999989415,-1049.22003217,0.00035616,30]
[336659873,1724999989439,-151.0,0.00035616,120]
[336659874,1724999989463,-150.0,0.00035655,120]
[336659876,1724999989487,-4265.477546,0.000357,30]
[336659878,1724999989511,-150.0,0.00035797,120]
[336659880,1724999989535,-4976.39047,0.000358,30]
[336659882,1724999989559,-150.0,0.00035805,120]
[336659883,1724999989583,-4265.477546,0.0003582,30]
[336659885,1724999989607,-150.083006,0.00035898,120]
[336659887,1724999989630,-150.083006,0.00035998,119]
[336659889,1724999989656,-50000.0,0.00036,36]
[336659890,1724999989680,-2000.0,0.00036,120]
[336659892,1724999989704,-400.0,0.00036,120]
[336659894,1724999989728,-40000.0,0.00036,120]
[336659896,1724999989752,-150.0,0.00036007,120]
[336659898,1724999989776,-150.083006,0.00036098,118]
[336659900,1724999989799,-6045.6,0.00036114,54]
[336659901,1724999989823,-2000.0,0.00036147,120]
[336659903,1724999989846,-150.083006,0.00036198,120]
[336659905,1724999989869,-212.0,0.0003627,30]
[336659907,1724999989893,-150.083006,0.00036298,119]
[336659909,1724999989917,-150.083006,0.00036398,119]
[336659910,1724999989941,-150.0,0.00036462,120]
[336659912,1724999989966,-150.083006,0.00036498,120]
[336659914,1724999989988,-2324.35158896,0.0003654,30]
[336659916,1724999990012,-150.083006,0.00036598,118]
[336659918,1724999990035,-150.0,0.00036602,120]
[336659919,1724999990058,-151.0,0.00036658,120]
[336659921,1724999990082,-150.0,0.00036695,120]
[336659923,1724999990106,-150.083006,0.00036698,118]
[336659925,1724999990131,-268.41,0.000367,31]
[336659927,1724999990158,-268.41,0.000367,31]
[336659929,1724999990185,-268.41,0.000367,31]
[336659931,1724999990213,-268.41,0.000367,31]
[336659932,1724999990240,-268.41,0.000367,31]
[336659934,1724999990265,-268.41,0.000367,31]
[336659936,1724999990290,-268.41,0.000367,31]
[336659938,1724999990320,-268.41,0.000367,31]
[336659940,1724999990346,-268.41,0.000367,31]
[336659942,1724999990371,-268.41,0.000367,31]
[336659944,1724999990396,-268.41,0.000367,31]
[336659946,1724999990420,-268.41,0.000367,31]
[336659947,1724999990453,-268.41,0.000367,31]
[336659949,1724999990479,-268.41,0.000367,31]
[336659951,1724999990505,-268.41,0.000367,31]
[336659953,1724999990529,-268.41,0.000367,31]
[336659955,1724999990554,-268.41,0.000367,31]
[336659957,1724999990580,-268.41,0.000367,31]
[336659959,1724999990605,-268.41,0.000367,31]
[336659961,1724999990629,-268.41,0.000367,31]
[336659963,1724999990654,-268.41,0.000367,31]
[336659964,1724999990679,-268.41,0.000367,31]
[336659966,1724999990706,-268.41,0.000367,31]
[336659968,1724999990730,-268.41,0.000367,31]
[336659974,1724999990754,-150.0,0.00036703,120]
[336659975,1724999990933,-151.0,0.0003674,120]
[336659976,1724999990968,-150.083006,0.00036898,119]
[336659977,1724999990991,-150.0,0.0003691,30]
[336659978,1724999991016,-50000.0,0.00037,37]
[336659979,1724999991040,-452.55448236,0.00037,120]
[336659980,1724999991063,-253.0,0.00037042,30]
[336659981,1724999991086,-150.083006,0.00037098,120]
[336659982,1724999991110,-150.0,0.00037206,120]
[336659983,1724999991134,-150.0,0.00037263,120]
[336659984,1724999991161,-150.0,0.00037263,120]
[336659985,1724999991185,-150.0,0.00037285,120]
[336659986,1724999991211,-150.083006,0.00037298,118]
[336659987,1724999991234,-2000.0,0.00037397,120]
[336659988,1724999991257,-200.0,0.00037397,120]
[336659989,1724999991282,-150.083006,0.00037498,119]
[336659990,1724999991306,-4723.88622249,0.00037498,120]
[336659991,1724999991330,-150.0,0.00037675,120]
[336659992,1724999991353,-150.083006,0.00037698,120]
[336659993,1724999991377,-150.0,0.00037718,120]
[336659994,1724999991400,-212.0,0.0003778,30]
[336659995,1724999991427,-150.0,0.0003783,120]
[336659996,1724999991452,-150.0,0.00037844,120]
[336659997,1724999991475,-151.0,0.00037863,120]
[336659998,1724999991499,-150.083006,0.00037898,118]
[336659999,1724999991526,-50000.0,0.00038,38]
[336660000,1724999991555,-40000.0,0.00038,120]
[336660001,1724999991578,-4617.26132707,0.00038,120]
[336660002,1724999991603,-500.0,0.00038,120]
[336660003,1724999991627,-1100.0,0.00038,120]
[336660004,1724999991651,-2000.0,0.00038,120]
[336660005,1724999991674,-3000.0,0.00038,120]
[336660006,1724999991697,-3000.0,0.00038,120]
[336660007,1724999991720,-3051.86772192,0.00038,120]
[336660008,1724999991743,-2116.75643236,0.00038,120]
[336660009,1724999991766,-150.0,0.00038029,120]
[336660010,1724999991791,-2324.35158896,0.0003804,30]
[336660011,1724999991815,-150.083006,0.00038098,119]
[336660012,1724999991843,-268.41,0.000382,31]
[336660013,1724999991868,-268.41,0.000382,31]
[336660014,1724999991894,-268.41,0.000382,31]
[336660015,1724999991920,-268.41,0.000382,31]
[336660016,1724999991947,-268.41,0.000382,31]
[336660017,1724999991973,-268.41,0.000382,31]
[336660018,1724999992000,-268.41,0.000382,31]
[336660019,1724999992026,-268.41,0.000382,31]
[336660020,1724999992052,-268.41,0.000382,31]
[336660021,1724999992078,-268.41,0.000382,31]
[336660022,1724999992115,-268.41,0.000382,31]
[336660023,1724999992151,-268.41,0.000382,31]
[336660024,1724999992187,-268.41,0.000382,31]
[336660025,1724999992223,-268.41,0.000382,31]
[336660026,1724999992259,-268.41,0.000382,31]
[336660027,1724999992294,-268.41,0.000382,31]
[336660028,1724999992330,-268.41,0.000382,31]
[336660029,1724999992363,-268.41,0.000382,31]
[336660030,1724999992398,-268.41,0.000382,31]
[336660031,1724999992432,-268.41,0.000382,31]
[336660032,1724999992466,-268.41,0.000382,31]
[336660033,1724999992500,-268.41,0.000382,31]
[336660034,1724999992535,-268.41,0.000382,31]
[336660035,1724999992571,-268.41,0.000382,31]
[336660036,1724999992605,-523.17,0.00038258,120]
[336660037,1724999992638,-150.0,0.00038286,120]
[336660038,1724999992675,-150.083006,0.00038298,120]
[336660039,1724999992712,-1424.48,0.00038356,120]
[336660040,1724999992748,-3124.19,0.00038356,120]
[336660041,1724999992781,-249.94506666,0.00038356,60]
[336660042,1724999992819,-150.083006,0.00038498,118]
[336660043,1724999992853,-1424.48,0.0003863,120]
[336660044,1724999992888,-3124.19,0.0003863,120]
[336660045,1724999992921,-2000.0,0.00038647,120]
[336660046,1724999992956,-150.0,0.0003865,120]
[336660047,1724999992994,-150.0,0.00038682,120]
[336660048,1724999993028,-150.083006,0.00038698,119]
[336660049,1724999993063,-150.0,0.00038703,120]
[336660050,1724999993098,-150.0,0.00038743,120]
[336660051,1724999993134,-150.0,0.0003887,120]
[336660052,1724999993171,-150.083006,0.00038898,120]
[336660053,1724999993205,-1321.16393798,0.000389,30]
[336660054,1724999993239,-1424.48,0.00038904,120]
[336660055,1724999993272,-3124.19,0.00038904,120]
[336660056,1724999993305,-150.0,0.00038968,120]
[336660057,1724999993339,-150.0,0.00038969,120]
[336660058,1724999993375,-151.0,0.00038986,120]
[336660059,1724999993414,-50000.0,0.00039,39]
[336660060,1724999993449,-1137.75343546,0.00039,120]
[336660061,1724999993762,-8972.3866221,0.00039,120]
[336660062,1724999994344,-150.0,0.00010999,2]
[336660063,1724999994366,-564136.81125996,0.00011,2]
[336660064,1724999994391,-1824375.18874004,0.00011,2]
[336660065,1725000039735,33644.2477,0.000109,2]
[336660066,1725000141220,948.5528,0.000109,2]
[336660067,1725000158484,-298.95,0.0002172,30]
[336660068,1725000158519,-298.95,0.00024881,30]
[336660069,1725000159264,-298.95,0.00028042,30]
[336660070,1725000159318,-298.95,0.00031203,30]
[336660071,1725000159352,-298.95,0.00034364,30]
[336660072,1725000159386,-500.0,0.00036493,120]
[336660073,1725000159414,-298.95,0.00037526,30]
[336660074,1725000159440,-575.87359032,0.00037931,120]
[336660075,1725000159467,-402.05,0.00038252,120]
[336660076,1725000159494,-2733.66,0.00038356,120]
[336660077,1725000159518,-1246.42,0.00038356,120]
[336660078,1725000159544,-2733.66,0.0003863,120]
[336660079,1725000159569,-1246.42,0.0003863,120]
[336660080,1725000159596,-2733.66,0.00038904,120]
[336660081,1725000159621,-1246.42,0.00038904,120]
[336660082,1725000159647,-991027.6133779,0.00039,120]
[336660083,1725000159672,-160.0,0.00039,30]
[336660084,1725000159697,-269.31954189,0.00039,120]
[336660085,1725000159722,-600.0,0.00039,120]
[336660086,1725000159746,-600.0,0.00039,120]
[336660087,1725000159769,-600.0,0.00039,120]
[336660088,1725000159793,-600.0,0.00039,120]
[336660089,1725000159816,-639.769619,0.00039,33]
[336660090,1725000159841,-779.82322145,0.00039,30]
[336660091,1725000159867,-2233.26844985,0.00039,120]
[336660092,1725000159892,-2296.0242817,0.00039,120]
[336660093,1725000159916,-7097.71891506,0.00039,30]
[336660094,1725000159942,-150.083006,0.00039098,118]
[336660095,1725000159966,-150.0,0.00039167,120]
[336660096,1725000159992,-2733.66,0.00039178,120]
[336660097,1725000160016,-1246.42,0.00039178,120]
[336660098,1725000160040,-1179.98023,0.00039208,30]
[336660099,1725000160066,-150.0,0.00039234,120]
[336660100,1725000160090,-212.0,0.0003928,30]
[336660101,1725000160114,-150.083006,0.00039298,119]
[336660102,1725000160138,-150.0,0.0003939,120]
[336660103,1725000160161,-569.63850981,0.000394,30]
[336660104,1725000160186,-150.0,0.00039401,120]
[336660105,1725000160210,-1179.98023,0.00039408,30]
[336660106,1725000160235,-2733.66,0.00039452,120]
[336660107,1725000160261,-1246.42,0.00039452,120]
[336660108,1725000160286,-150.0,0.00039495,120]
[336660109,1725000160311,-150.083006,0.00039498,120]
[336660110,1725000160336,-6596.4,0.00039529,74]
[336660111,1725000160362,-2324.35158896,0.0003954,30]
[336660112,1725000160387,-150.0,0.00039549,120]
[336660113,1725000160411,-150.0,0.00039553,120]
[336660114,1725000160436,-150.0,0.00039568,120]
[336660115,1725000160462,-940.54813094,0.00039585,30]
[336660116,1725000160486,-940.54813094,0.00039588,30]
[336660117,1725000160509,-940.54813094,0.00039594,30]
[336660118,1725000160532,-940.54813094,0.00039596,30]